Cogmind - Beta 15 @@@ ROGUE MODE // 2025.06.09 @ 22:44:36 Player: Skysub Result: Destroyed by U9-4N2(R) with Subdweller Laser Performance ------------- Evolutions (0) 0 Regions Visited (2) 400 Robots Destroyed (31) 155 Value Destroyed (618) 618 Prototype IDs (0) 0 Alien Tech Used (0) 0 Bonus (0) 0 TOTAL SCORE: 1173 Bonus ------- None Cogmind --------- Core Integrity 0/250 Matter 179/300 Energy 200/200 System Corruption 0% Temperature Cool (6) Movement Rolling (120) Ox1 Location -10/Subcaves Parts ------- > --- POWER (1) -------- Subdweller Power Source > --- PROPULSION (2) --- Light Treads Subdweller Monowheel > --- UTILITY (2) ------ Large Storage Unit Subdweller Optics > --- WEAPON (2) ------- Heavy Assault Rifle Makeshift Shrapnel Gun > --- INVENTORY (15) --- Subdweller Power Source Subdweller Monowheel Subdweller Monowheel Small Storage Unit Subdweller Optics Medium Laser Subdweller Laser Assault Rifle Assault Rifle Heavy Assault Rifle Subdweller Machine Gun Battle Cannon Mining Laser Plasma Cutter Peak State ------------ > --- POWER ------------ Subdweller Power Source > --- PROPULSION ------- Light Treads Subdweller Monowheel > --- UTILITY ---------- Large Storage Unit Subdweller Optics > --- WEAPON ----------- Heavy Assault Rifle Makeshift Shrapnel Gun > --- INVENTORY -------- Subdweller Power Source Subdweller Monowheel Subdweller Monowheel Small Storage Unit Subdweller Optics Medium Laser Subdweller Laser Assault Rifle Assault Rifle Heavy Assault Rifle Subdweller Machine Gun Battle Cannon Mining Laser Plasma Cutter [Rating: 16] Favorites ----------- Power Ion Engine Engine Ion Engine Propulsion Light Treads Treads Light Treads Wheel Subdweller Monowheel Utility Large Storage Unit Device Subdweller Optics Storage Large Storage Unit Weapon Assault Rifle Energy Gun Medium Laser Ballistic Gun Assault Rifle Special Weapon Mining Laser Build | -11 -10 -10 ------- Run | Yrd Mat Sub Slots Evolved . | . . . Power . | . . . Propulsion . | . . . Utility . | . . . Weapon . | . . . Parts Attached 20 | 6 8 6 Power 3 | 1 1 1 Engine 3 | 1 1 1 Core . | . . . Reactor . | . . . Propulsion 4 | 2 . 2 Treads 3 | 2 . 1 Leg . | . . . Wheel 1 | . . 1 Hover . | . . . Flight . | . . . Utility 4 | 1 2 1 Device 1 | . . 1 Storage 3 | 1 2 . Processor . | . . . Hackware . | . . . Protection . | . . . Artifact . | . . . Weapon 9 | 2 5 2 Energy Gun 2 | 1 1 . Energy Cannon . | . . . Ballistic Gun 6 | 1 4 1 Ballistic Cannon . | . . . Launcher . | . . . Special Weapon 1 | . . 1 Impact Weapon . | . . . Slashing Weapon . | . . . Piercing Weapon . | . . . Special Melee Weapon . | . . . Unidentified Prototypes . | . . . Parts Lost 5 | . 2 3 Power 2 | . 1 1 Propulsion 2 | . . 2 Utility . | . . . Weapon 1 | . 1 . Highest Loss Streak 2 | . 1 2 To Critical Strikes . | . . . Average Backups 8 | 1 6 13 Power . | . 1 . Propulsion 1 | . 1 2 Utility 1 | . 1 1 Weapon 3 | . 2 6 Tool/Special . | . . . Unused Backups 11 | . 1 10 Power 1 | . . 1 Propulsion 3 | . . 3 Utility 1 | . . 1 Weapon 5 | . 1 4 Tool/Special 1 | . . 1 Average Slot Usage (%) 83 | . 84 82 Engine 11 | . 13 8 Treads 26 | . 27 24 Wheel 1 | . . 3 Device 1 | . . 3 Storage 14 | . 14 14 Energy Gun 3 | . 1 6 Ballistic Gun 24 | . 26 18 Peak Build Rating 16 | 6 9 16 Average Rating 7 | 4 6 9 On Entrance 4 | . 6 8 Naked Turns . | . . . Heaviest Build 32 | 13 31 32 Greatest Support 40 | 40 40 40 Greatest Overweight (x) 10 | . 10 1 Average Overweight (x) . | . . . Largest Inventory Capacity 15 | 8 15 15 Average Capacity 13 | 7 13 15 Most Carried 15 | 3 9 15 Average Carried 8 | 1 6 13 Final Capacity 15 | 8 15 15 Final Carried 14 | 3 8 14 Class Distribution -------------------- 96% | Mutant 3% | Scavenger-Mutant Dominant Class ---------------- Mutant | -10/Materials Mutant | -10/Subcaves Resources | -11 -10 -10 ----------- Run | Yrd Mat Sub Matter Collected 897 | 272 247 378 Remotely . | . . . Salvage Created 1052 | 147 668 237 Parts 86 | 8 60 18 Haulers Intercepted 1 | . 1 . Recyclers Shooed . | . . . Parts Field Recycled . | . . . Retrieved Matter . | . . . Parts Self-Destructed 14 | . . 14 Prevented . | . . . Kills | -11 -10 -10 ------- Run | Yrd Mat Sub Combat Hostiles Destroyed 19 | . 15 4 Guns 19 | . 15 4 Classes Destroyed 10 | 2 6 2 Worker 1 | . 1 . Builder 4 | . 4 . Tunneler 3 | 2 1 . Hauler 1 | . 1 . Recycler 2 | 1 1 . Watcher 1 | . 1 . Swarmer 6 | . 6 . Grunt 9 | . 9 . Cobbler 1 | . . 1 Subdweller 4 | . . 4 Best Kill Streak 4 | 3 4 2 Combat Bots Only 3 | . 3 2 Max Kills in Single Turn 2 | 1 2 1 Gunslinging 1 | . 1 . Exploded . | . . . Melee . | . . . Uniques/NPCs Destroyed . | . . . Combat | -11 -10 -10 -------- Run | Yrd Mat Sub Hostile Shots Fired 96 | . 61 35 Missed 28 | . 19 9 Hits 68 | . 42 26 Projectile 68 | . 42 26 Damage Taken 983 | . 450 533 Core 265 | . 78 187 Absorbed by Shields . | . . . Core Remaining (%) 100 | 100 . . Volleys Fired 111 | 5 72 34 Largest 2 | 2 2 2 Hottest 123 | 60 60 123 Shots Fired 219 | 10 143 66 Gun 210 | 10 143 57 Cannon . | . . . Launcher . | . . . Special 9 | . . 9 Kinetic 195 | 5 142 48 Thermal 24 | 5 1 18 Explosive . | . . . Electromagnetic . | . . . Robot Hit Streak 14 | 3 12 14 Robot Miss Streak 5 | 2 5 2 Penetration Max . | . . . Secondary Targets 5 | . 4 1 Max Gunslinging Chain 1 | . 1 1 Shots Hit Robots 132 | 4 87 41 Core Hits 53 | 4 34 15 Critical Kills 1 | . 1 . Critical Parts Destroyed . | . . . Critical Strikes 2 | . 1 1 Burn 1 | . . 1 Destroy 1 | . 1 . Melee Attacks . | . . . Impact . | . . . Slashing . | . . . Piercing . | . . . Sneak Attacks . | . . . Combat Hostiles . | . . . Follow-up Attacks . | . . . Damage Inflicted 1728 | 59 1082 587 Guns 1716 | 59 1070 587 Cannons . | . . . Explosions . | . . . Melee . | . . . Ramming 12 | . 12 . Kinetic 1584 | 26 1070 488 Thermal 132 | 33 . 99 Explosive . | . . . Electromagnetic . | . . . Impact . | . . . Slashing . | . . . Piercing . | . . . Highest Corruption . | . . . Average Corruption . | . . . Corruption Purged . | . . . Corruption Blocked . | . . . Overload Shots . | . . . Overflow Damage . | . . . Projectiles . | . . . Explosions . | . . . Melee . | . . . Knockbacks . | . . . Impact . | . . . Kinetic . | . . . Secondary . | . . . Self-Inflicted Damage . | . . . Shots . | . . . Rammed 2 | . 2 . Targets Rammed 3 | . 3 . Kicked . | . . . Crushed 1 | . 1 . Highest Temperature 8 | . 8 3 Average Temperature 2 | . 2 3 Received Heat Transfer 321 | . 231 90 Siege Activations . | . . . Martial Activations . | . . . Shielding Activations . | . . . Robots Disrupted . | . . . Combat Hostiles . | . . . Robots Corrupted . | . . . Combat Hostiles . | . . . Parts Fried . | . . . Impact Corruptions . | . . . Robots Melted . | . . . Combat Hostiles . | . . . Parts Melted . | . . . Heat Transferred 445 | 75 . 370 Parts Sabotaged . | . . . Parts Stolen . | . . . Parts Stripped . | . . . Power Chain Reactions . | . . . Alert | -11 -10 -10 ------- Run | Yrd Mat Sub Maximum Alert Level . | . . . Low Security (%) 100 | 100 100 . Level 1 . | . . . Level 2 . | . . . Level 3 . | . . . Level 4 . | . . . Level 5 . | . . . High Security . | . . . Max Security . | . . . Peak Influence 123 | 10 123 . Initial . | . . . Average 32 | 1 34 . Influence Increases 516 | 15 501 . Destroy 0b10 Robot/C 300 | . 300 . Destroy 0b10 Robot/NC 60 | 15 45 . Destroy Leader 64 | . 64 . Select Force Hacks 60 | . 60 . Disable Machine 30 | . 30 . Destroy Structure 2 | . 2 . Influence Decreases 516 | 15 382 119 Entered New Map 58 | . . 58 Time Decay 438 | 15 362 61 Lost Part 20 | . 20 . Squads Dispatched 4 | . 4 . Investigation 3 | . 3 . Extermination . | . . . Reinforcement 1 | . 1 . Assault . | . . . Garrison . | . . . Intercept . | . . . Searches Triggered . | . . . Construction Impeded . | . . . Haulers Reinforced . | . . . Active Scanning Responses . | . . . Cargo Convoy Interrupts . | . . . Stealth | -11 -10 -10 --------- Run | Yrd Mat Sub Distress Signals 2 | . 2 . Communications Jammed . | . . . Distress Signals . | . . . Times Spotted 34 | . 28 6 Peak Tracking Total 4 | . 4 2 Tactical Retreats . | . . . Traps | -11 -10 -10 ------- Run | Yrd Mat Sub Traps Triggered 2 | . 2 . Indirectly . | . . . Trap Hack Attempts . | . . . Triggered . | . . . Disarmed . | . . . Reprogrammed . | . . . Reused . | . . . Traps Extracted . | . . . Installed . | . . . Triggered . | . . . Machines | -11 -10 -10 ---------- Run | Yrd Mat Sub Machines Disabled 2 | . 2 . Max in Single Turn 1 | . 1 . Machines Repaired . | . . . Machines Dismantled . | . . . Machines Sabotaged . | . . . Overloaded Fab Kills . | . . . Hacking | -11 -10 -10 --------- Run | Yrd Mat Sub Machines Accessed 4 | . 3 1 Terminals 1 | . 1 . Fabricators . | . . . Repair Stations . | . . . Recycling Units 2 | . 2 . Scanalyzers . | . . . Garrison Access . | . . . Total Hacks 14 | . 13 1 Successful 8 | . 7 1 Failed 6 | . 6 . Catastrophic 3 | . 3 . Database Lockouts . | . . . Manual 5 | . 5 . Terminals 3 | . 3 . Fabricators . | . . . Repair Stations . | . . . Recycling Units 10 | . 10 . Scanalyzers . | . . . Garrison Access . | . . . Terminal Hacks 1 | . . 1 Open Door 1 | . . 1 Fabricator Hacks . | . . . Repair Station Hacks . | . . . Recycling Unit Hacks 4 | . 4 . Report Inventory 2 | . 2 . Retrieve Components 2 | . 2 . Scanalyzer . | . . . Garrison Access Hacks . | . . . Unauthorized Hacks 3 | . 3 . Terminals 1 | . 1 . Botnet 1 | . 1 . Fabricators . | . . . Repair Stations . | . . . Recycling Units 2 | . 2 . Tunnel 2 | . 2 . Scanalyzers . | . . . Garrison Access . | . . . Data Cores Recovered . | . . . Used . | . . . Hacking Detections 3 | . 3 . Full Trace Events . | . . . Feedback Events . | . . . Feedback Blocked . | . . . Robot Schematics Acquired . | . . . Robots Built . | . . . Authchips . | . . . Time . | . . . Total Robot Build Rating . | . . . Part Schematics Acquired . | . . . Parts Built . | . . . Authchips . | . . . Time . | . . . Total Part Build Rating . | . . . Parts Repaired . | . . . Time . | . . . Parts Recycled . | . . . Recycled Matter . | . . . Retrieved Matter . | . . . Retrieved Components 13 | . 13 . Parts Scanalyzed . | . . . Part Schematics Acquired . | . . . Parts Damaged . | . . . Bothacking | -11 -10 -10 ------------ Run | Yrd Mat Sub Used RIF Installer . | . . . Robots Hacked . | . . . Non-combat . | . . . Combat . | . . . Robot Hacks Applied . | . . . Relay Couplers Released . | . . . Fabnet Peak Effective % . | . . . Robots Rewired . | . . . Allies Hacked . | . . . Hacks Repelled . | . . . Allies | -11 -10 -10 -------- Run | Yrd Mat Sub Total Allies . | . . . Largest Group . | . . . Highest-Rated Group . | . . . Highest-Rated Ally . | . . . Total Orders . | . . . Ally Attacks . | . . . Total Damage . | . . . Kills . | . . . Allies Corrupted . | . . . Allies Melted . | . . . Intel | -11 -10 -10 ------- Run | Yrd Mat Sub Active Infowar (turns) 165 | . . 165 Optics 165 | . . 165 Robot Analysis Total . | . . . Derelict Logs Recovered 1 | . . 1 Drone Launches . | . . . Drone Recoveries . | . . . Exploration | -11 -10 -10 ------------- Run | Yrd Mat Sub Turns Passed 2295 | 84 1505 706 Spaces Moved 1015 | 38 607 370 Core 3 | 2 1 . Treads 916 | 36 606 274 Legs . | . . . Wheels 96 | . . 96 Hover . | . . . Flight . | . . . Fastest Speed 50 | 50 160 120 Average Speed 156 | 154 160 149 Slowest Speed 550 | 160 550 160 Overloaded Moves . | . . . Propulsion Burnouts . | . . . Robots Hopped . | . . . Potential Cave-ins . | . . . Cave-ins Triggered . | . . . Exploration Rate (%) 39 | 4 96 17 Regions Visited 2 Branch Regions 1 Pre-discovered Areas 2 | . 2 . Known Exits Taken . | . . . Unknown Exits Taken 2 | 1 1 . Scrap Searched 2 | . . 2 Spaces Dug . | . . . Terrain Destroyed . | . . . Melee . | . . . Projectile . | . . . AOE . | . . . Terrain Rammed . | . . . Walls Destroyed . | . . . Machines Disabled . | . . . Actions | -11 -10 -10 --------- Run | Yrd Mat Sub Total 1478 | 51 988 439 Wait 299 | . 287 12 Move 1013 | 37 606 370 Hop . | . . . Pick Up 20 | 3 5 12 Fast Attach 11 | 6 5 . Attach 6 | . 2 4 Detach 2 | . 2 . Swap 9 | . 4 5 Drop 4 | . 2 2 Fire 111 | 5 72 34 Melee . | . . . Ram . | . . . Kick . | . . . Crush 3 | . 3 . Escape Stasis . | . . . Rewire . | . . . Trap . | . . . Miscellaneous . | . . . Route ------- -11/Scrapyard -10/Materials (discovered 5 exits: [*Mat x3] / [*Min] / *Sub) -10/Subcaves History --------- Turn | Location | Event 29 | -11/Scrapyard | Discovered new exit (range 16) 85 | -11/Scrapyard | Entered Materials 318 | -10/Materials | Build established: Mutant 325 | -10/Materials | Discovered new exit (range 4) 535 | -10/Materials | Discovered new exit (range 12) 1061 | -10/Materials | Discovered new exit (range 8) 1194 | -10/Materials | Discovered new exit (range 11) 1582 | -10/Materials | Discovered new exit (range 4) 1590 | -10/Materials | Entered Subcaves 1592 | -10/Subcaves | Learned 4 Materials zone layouts 1658 | -10/Subcaves | Disturbed a concealed Subdweller 1833 | -10/Subcaves | Core integrity fell below 50% 2119 | -10/Subcaves | Core integrity fell below 20% 2296 | -10/Subcaves | Destroyed by U9-4N2(R) with Subdweller Laser Last Messages --------------- Acquired 70 matter. Dropped Com. Wheel. Acquired Sub. Monowheel. Subatomizers dissect the Sub. Laser. Acquired 11 matter. RM-4IX(R): "ECOKILL!" Subatomizers dissect the Cobbler Unit. Connecting with UFD SUBCON Station... Current location identified: Subcaves >>Open Door Sealed Heavy Doors opened. Lgt. Treads destroyed. RM-4IX(R) destroyed. Acquired 52 matter. Acquired Sub. Machine Gun. Acquired Sub. Optics. Acquired Sub. Power Source. Acquired 19 matter. Acquired 13 matter. Acquired 14 matter. Map ----- +----------------------------------------------------+ | ##????????????## ##??????????????????????????? | | #????????????# ##??????????????????????????? | | ##????????#### #??????????????????????????? | | ##??????## #??????????????????????????? | | #??##??# ##?????????????????????????? | | ##??# #?# #?????????????????????????? | | ##??# ## ###?????????????????????????? | | #???# #???????????????????????????? | | ###???## #???????????????????????????? | | ##??????## ### #???????????????????????????? | | #????????# #?## ##???????????????????????????? | | ##??????##& #?# #????????????????????????????? | | ##?????#& #?# #????????????????????????????? | | "######## #### ##???????????????????????????? | | ## # # && # #???????????????????????????? | | # " "" ##???????????????????????????? | | # """" #???????????????????????????? | | ## "## # ## # ##???????????????????????????? | | #""# "###############????????????????????????????? | | """ ""#?????????????????????????????????????????? | | """" "##???#####???###???????????????????????????? | | " "##????# ##### #???????????????????????????? | | ## ##???## ##????###????#???????????????? | | ##"" "##### # # ###?## ### ##??????????????? | | " " "# #### ### ##?????????????? | | # " """"" ## @ R#?????????????? | | # " ## "" # ## R "" ???????? | | "" ###### ###????????? ""???????? | | " ##????#### ## #??????????????????????? | | "##????????######### ##??????????????????????? | | #####?????????????????####???????????????????????? | | ?????????????????????????????????????????????????? | | ?????????????????????????????????????????????????? | | ?????????????????????????????????????????????????? | | ?????????????????????????????????????????????????? | | ?????????????????????????????????????????????????? | | ?????????????????????????????????????????????????? | | ?????????????????????????????????????????????????? | | ?????????????????????????????????????????????????? | | ?????????????????????????????????????????????????? | | ?????????????????????????????????????????????????? | | ?????????????????????????????????????????????????? | | ?????????????????????????????????????????????????? | | ?????????????????????????????????????????????????? | | ?????????????????????????????????????????????????? | | ?????????????????????????????????????????????????? | | | | | | | | | +----------------------------------------------------+ Best States ------------- Heat Dissipation 25 Energy Generation 15 Energy Capacity 250 Matter Stores 300 Matter Capacity 300 Sight Range 21 Terrain Scan Density 10 Evasion (%) 40 Recoil Reduction 2 Item Schematics ----------------- None Robot Schematics ------------------ None Fabricated ------------ Nothing Repaired ---------- Nothing Alien Tech Used ----------------- None Achievements -------------- None Challenges ------------ None Game ------ Seed FrostSuperdenseField Manual? 0 Play Time 00:11:46 Cumulative 122.1 hours Start 2025.06.09 @ 22:33:45 End 2025.06.09 @ 22:44:36 Sessions 1 Manual Loads 0 Difficulty Rogue Special Mode None Game No. 126 Rogue 126 Adventurer 0 Explorer 0 Win Type - Total 2 Types 1/0/0/1/0/0/0/0/0/0 Lore% 60 Gallery% 56 Achievement% 51 Wizard Run 0 Options --------- Layout 1 ASCII 0 Keyboard 1 Movement Numpad Keybinds 0 Fullscreen 1 Font 32/SmallcapsGlow Map View 77x35 Zoom Use 0% Tactical HUD 0 Map Filters NONE Filters NONE Steam 1 RUN: c1af5b0e-b7fd-498a-bc28-f96dfdab139b